{"text_format":"1","workbook":"xlsx","n_sheets":2,"sheets":["таблица3","сводная3"],"not_rendered":{"charts":0,"images":0,"macros":1,"external_links":0,"defined_names":0,"comments":0,"pivot_tables":1},"unopened":[],"bounds":{"document_bytes":16777216,"sheet_cells":100000,"rows_first":2000,"rows_last":500,"rows_between":2000,"halvings":0,"cell_chars":16384,"cell_head_chars":4096},"cells_cut":0,"cells_raw":0,"read":"whole","date_system":"1900"}

{"sheet":"таблица3","index":0,"n_rows":14,"n_cols":8,"rows_kept":14,"cut":false,"hidden":false,"merged":[]}
["Регион","Дистрибьютор","Субдистрибьютор","Продукт","Сцепить","Месяц","Сумма","Все Месяца"]
["Самара","Каравай","Сатурн","Масло",{"$f":"CONCATENATE(A2,B2,C2,D2)","v":"СамараКаравайСатурнМасло"},"апрель ",5000,{"$f":"СцепитьЕсли($E$1:$E$38,E2,$F$1:$F$38,\", \")","v":"апрель , июль , июль , декабрь, март"}]
["Самара","Каравай","Сатурн","Масло",{"$f":"CONCATENATE(A3,B3,C3,D3)","v":"СамараКаравайСатурнМасло"},"июль ",3000,"апрель , июль , июль , декабрь, март"]
["Самара","Каравай","Сатурн","Масло","СамараКаравайСатурнМасло","июль ",5000,"апрель , июль , июль , декабрь, март"]
["Орел","Брикет","Луч","Хлеб","ОрелБрикетЛучХлеб","апрель ",10000,"апрель , июль "]
["Орел","Брикет","Луч","Хлеб","ОрелБрикетЛучХлеб","июль ",12000,"апрель , июль "]
["Самара","Каравай","Сатурн","Масло","СамараКаравайСатурнМасло","декабрь",1000,"апрель , июль , июль , декабрь, март"]
["Нижний Новгород","Ватрушка","Сатурн","Конфеты","Нижний НовгородВатрушкаСатурнКонфеты","январь",5000,"январь, февраль, март, апрель "]
["Нижний Новгород","Ватрушка","Сатурн","Конфеты","Нижний НовгородВатрушкаСатурнКонфеты","февраль",4000,"январь, февраль, март, апрель "]
["Нижний Новгород","Ватрушка","Сатурн","Конфеты","Нижний НовгородВатрушкаСатурнКонфеты","март",3500,"январь, февраль, март, апрель "]
["Нижний Новгород","Ватрушка","Сатурн","Конфеты","Нижний НовгородВатрушкаСатурнКонфеты","апрель ",7000,"январь, февраль, март, апрель "]
["Самара","Каравай","Сатурн","Масло","СамараКаравайСатурнМасло","март",1000,"апрель , июль , июль , декабрь, март"]
["Нижний Новгород","Ватрушка","Сатурн","Мясо","Нижний НовгородВатрушкаСатурнМясо","июль ",500,"июль "]
["Самара","Плюшка","Сатурн","Масло","СамараПлюшкаСатурнМасло","май",5000,"май"]

{"sheet":"сводная3","index":1,"n_rows":10,"n_cols":6,"rows_kept":10,"cut":false,"hidden":false,"merged":[[4,0,5,0],[7,0,8,0],[9,0,9,4],[4,1,5,1],[4,2,5,2],[7,2,8,2],[7,3,8,3]]}
[]
[]
["Сумма по полю Сумма"]
["Регион","Дистрибьютор","Субдистрибьютор","Продукт","Все Месяца","Итог"]
["Нижний Новгород","Ватрушка","Сатурн","Конфеты","январь, февраль, март, апрель ",19500]
[null,null,null,"Мясо","июль ",500]
["Орел","Брикет","Луч","Хлеб","апрель , июль ",22000]
["Самара","Каравай","Сатурн","Масло","апрель , июль , июль , декабрь, март",15000]
[null,"Плюшка","Сатурн","Масло","май",5000]
["Общий итог",null,null,null,null,62000]